fUSD/lending_fUSD_20260630
["ID","MTS","AMOUNT","RATE_DAILY","PERIOD"]
[426721384,1782760264000,-1443.491763,0.00034852,7]
[426721374,1782760264000,-240535.0,0.00034852,30]
[426721399,1782760264000,-452.81055652,0.00034989,2]
[426721385,1782760264000,-154.960337,0.00034852,7]
[426721397,1782760264000,-5725.99032933,0.00034989,2]
[426721398,1782760264000,-227.09549037,0.00034989,2]
[426721386,1782760264000,-154.960337,0.00034852,7]
[426721387,1782760264000,-154.960337,0.00034852,7]
[426721394,1782760264000,-1868.0,0.0003498,120]
[426721396,1782760264000,-2034.97,0.0003498,120]
[426721390,1782760264000,-192.9,0.000349,120]
[426721393,1782760264000,-2029.0,0.0003498,120]
[426721395,1782760264000,-1875.32,0.0003498,120]
[426721389,1782760264000,-379.52,0.00034887,3]
[426721392,1782760264000,-504.0,0.00034938,2]
[426721391,1782760264000,-1064.0,0.00034904,7]
[426721340,1782760264000,-297.0,0.00034448,7]
[426721372,1782760264000,-346.36363636,0.00034848,2]
[426721369,1782760264000,-5000.0,0.00034817,2]
[426721388,1782760264000,-154.96033,0.00034852,7]
[426721370,1782760264000,-5000.0,0.00034817,2]
[426721368,1782760264000,-5000.0,0.00034817,2]
[426721339,1782760264000,-152.0,0.00034448,7]
[426721345,1782760264000,-199.75,0.000345,13]
[426721343,1782760264000,-3575.0,0.000345,30]
[426721347,1782760264000,-412.99,0.00034544,60]
[426721346,1782760264000,-370.82,0.00034544,60]
[426721341,1782760264000,-151.83365069,0.00034456,2]
[426721358,1782760264000,-390.0,0.00034684,30]
[426721348,1782760264000,-1692.76,0.000346,30]
[426721350,1782760264000,-901.0,0.00034621,30]
[426721349,1782760264000,-197.0,0.00034621,30]
[426721357,1782760264000,-241.0,0.00034684,30]
[426721353,1782760264000,-260.0,0.00034621,30]
[426721354,1782760264000,-353.0,0.00034674,30]
[426721344,1782760264000,-800.0,0.000345,7]
[426721355,1782760264000,-241.0,0.00034674,30]
[426721351,1782760264000,-199.0,0.00034621,30]
[426721371,1782760264000,-152.0,0.0003483,4]
[426721366,1782760264000,-6896.2026673,0.00034817,2]
[426721365,1782760264000,-6122.0,0.00034807,10]
[426721367,1782760264000,-5000.0,0.00034817,2]
[426721362,1782760264000,-526.65,0.00034703,30]
[426721359,1782760264000,-176.0,0.00034684,30]
[426721360,1782760264000,-576.0,0.00034684,30]
[426721361,1782760264000,-931.0,0.00034684,30]
[426721364,1782760264000,-1500.0,0.00034795,2]
[426721352,1782760264000,-157.0,0.00034621,30]
[426721356,1782760264000,-1071.0,0.00034674,30]
[426721363,1782760264000,-658.01,0.0003479,30]
[426721426,1782760265000,-494.21329011,0.00035,15]
[426721429,1782760265000,-1500.0,0.00035,2]
[426721434,1782760265000,-5698.0,0.00035,12]
[426721430,1782760265000,-2000.0,0.00035,35]
[426721428,1782760265000,-7500.0,0.00035,14]
[426721425,1782760265000,-2303.63313041,0.00035,30]
[426721432,1782760265000,-1500.0,0.00035,2]
[426721431,1782760265000,-1500.0,0.00035,2]
[426721427,1782760265000,-1500.0,0.00035,2]
[426721433,1782760265000,-158.0,0.00035,30]
[426721441,1782760265000,-183.66054813,0.00035,120]
[426721436,1782760265000,-4357.0,0.00035,120]
[426721438,1782760265000,-1009.0,0.00035,30]
[426721440,1782760265000,-208.90060571,0.00035,120]
[426721439,1782760265000,-208.14482667,0.00035,120]
[426721437,1782760265000,-3000.0,0.00035,30]
[426721445,1782760265000,-200.30438809,0.00035,120]
[426721444,1782760265000,-267.3810954,0.00035,120]
[426721443,1782760265000,-235.39689177,0.00035,120]
[426721424,1782760265000,-12337.1575395,0.00035,7]
[426721435,1782760265000,-11228.71475192,0.00035,120]
[426721423,1782760265000,-5304.43597613,0.00035,7]
[426721412,1782760265000,-1500.0,0.00035,2]
[426721421,1782760265000,-3170.53708571,0.00035,2]
[426721442,1782760265000,-189.17619872,0.00035,120]
[426721405,1782760265000,-1077.8088,0.00035,2]
[426721403,1782760265000,-2029.0,0.0003499,120]
[426721410,1782760265000,-1500.0,0.00035,2]
[426721408,1782760265000,-25199.07845607,0.00035,2]
[426721401,1782760265000,-1868.0,0.0003499,120]
[426721406,1782760265000,-283.34860366,0.00035,2]
[426721402,1782760265000,-1868.0,0.0003499,120]
[426721409,1782760265000,-1500.0,0.00035,2]
[426721404,1782760265000,-2001.63,0.00035,120]
[426721407,1782760265000,-364.00622079,0.00035,30]
[426721411,1782760265000,-1500.0,0.00035,2]
[426721400,1782760265000,-2029.0,0.0003499,120]
[426721414,1782760265000,-1500.0,0.00035,2]
[426721413,1782760265000,-1500.0,0.00035,2]
[426721419,1782760265000,-8331.26488816,0.00035,30]
[426721420,1782760265000,-2812.82922078,0.00035,10]
[426721415,1782760265000,-4246.73583235,0.00035,7]
[426721416,1782760265000,-6693.50681856,0.00035,30]
[426721417,1782760265000,-2750.84293219,0.00035,2]
[426721418,1782760265000,-1105.66872163,0.00035,120]
[426721422,1782760265000,-1734.01008843,0.00035,30]
[426721447,1782760265000,-163.79981696,0.00035,120]
[426721451,1782760265000,-211.7120455,0.00035,120]
[426721449,1782760265000,-257.63753746,0.00035,120]
[426721477,1782760265000,-207.89824776,0.000353,30]
[426721475,1782760265000,-50590.6673618,0.0003527,2]
[426721474,1782760265000,-151.83365069,0.00035247,2]
[426721478,1782760265000,-207.89824774,0.000353,30]
[426721483,1782760265000,-268.17075153,0.000353,30]
[426721480,1782760265000,-869.13343567,0.000353,30]
[426721481,1782760265000,-869.13343567,0.000353,30]
[426721482,1782760265000,-268.17075154,0.000353,30]
[426721479,1782760265000,-869.13343569,0.000353,30]
[426721473,1782760265000,-497.9,0.000352,90]
[426721485,1782760265000,-526.65,0.00035312,30]
[426721492,1782760265000,-185.97,0.00035379,30]
[426721486,1782760265000,-1868.0,0.0003537,120]
[426721490,1782760265000,-151.0,0.00035376,7]
[426721491,1782760265000,-151.0,0.00035376,7]
[426721488,1782760265000,-151.0,0.00035376,7]
[426721489,1782760265000,-151.0,0.00035376,7]
[426721493,1782760265000,-1868.0,0.0003538,120]
[426721494,1782760265000,-2029.0,0.0003538,120]
[426721448,1782760265000,-200.0,0.00035,120]
[426721487,1782760265000,-2029.0,0.0003537,120]
[426721476,1782760265000,-225.58366518,0.000353,30]
[426721484,1782760265000,-268.17075153,0.000353,30]
[426721471,1782760265000,-151.0,0.00035185,7]
[426721446,1782760265000,-278.83852659,0.00035,120]
[426721469,1782760265000,-160.0,0.0003506,11]
[426721450,1782760265000,-205.06990361,0.00035,120]
[426721452,1782760265000,-182.73972698,0.00035,120]
[426721454,1782760265000,-636.78617313,0.00035,120]
[426721455,1782760265000,-193.74760743,0.00035,120]
[426721453,1782760265000,-222.71216991,0.00035,120]
[426721458,1782760265000,-176.00668385,0.00035,120]
[426721457,1782760265000,-182.12426236,0.00035,120]
[426721459,1782760265000,-204.13536785,0.00035,120]
[426721456,1782760265000,-212.03024822,0.00035,120]
[426721467,1782760265000,-350.0,0.0003504,37]
[426721463,1782760265000,-1078.2,0.00035,120]
[426721462,1782760265000,-2570.07,0.00035,7]
[426721464,1782760265000,-526.65,0.00035008,30]
[426721461,1782760265000,-220.67660076,0.00035,30]
[426721466,1782760265000,-307.94,0.0003503,30]
[426721465,1782760265000,-500.0,0.0003501,10]
[426721468,1782760265000,-364.0,0.00035055,7]
[426721460,1782760265000,-800.0,0.00035,7]
[426721472,1782760265000,-362.255879,0.00035193,7]
[426721470,1782760265000,-497.9,0.000351,10]
[426721523,1782760266000,-13260.57721285,0.00035584,3]
[426721535,1782760266000,-151.0,0.00035616,7]
[426721534,1782760266000,-203.80061365,0.00035616,60]
[426721526,1782760266000,-25000.0,0.00035584,3]
[426721530,1782760266000,-481661.23557258,0.00035593,2]
[426721529,1782760266000,-25000.0,0.00035584,3]
[426721528,1782760266000,-25000.0,0.00035584,3]
[426721537,1782760266000,-526.65,0.00035616,30]
[426721521,1782760266000,-350.0,0.00035578,2]
[426721531,1782760266000,-2000.0,0.000356,120]
[426721527,1782760266000,-25000.0,0.00035584,3]
[426721536,1782760266000,-151.0,0.00035616,7]
[426721545,1782760266000,-166.414994,0.00035616,30]
[426721532,1782760266000,-151.0,0.00035613,14]
[426721539,1782760266000,-520.16644751,0.00035616,7]
[426721540,1782760266000,-166.414994,0.00035616,30]
[426721549,1782760266000,-166.414994,0.00035616,30]
[426721544,1782760266000,-166.414994,0.00035616,30]
[426721541,1782760266000,-166.414994,0.00035616,30]
[426721547,1782760266000,-166.414994,0.00035616,30]
[426721538,1782760266000,-500.0,0.00035616,7]
[426721546,1782760266000,-166.414994,0.00035616,30]
[426721542,1782760266000,-166.414994,0.00035616,30]
[426721543,1782760266000,-166.414994,0.00035616,30]
[426721522,1782760266000,-1492.73875553,0.00035584,30]
[426721533,1782760266000,-100810.54539642,0.00035616,7]
[426721520,1782760266000,-500.0,0.00035573,11]
[426721502,1782760266000,-5800.0,0.00035438,2]
[426721525,1782760266000,-1350.05536941,0.00035584,3]
[426721548,1782760266000,-166.414994,0.00035616,30]
[426721495,1782760266000,-1868.0,0.0003539,120]
[426721496,1782760266000,-2029.0,0.0003539,120]
[426721497,1782760266000,-1737.06,0.00035395,7]
[426721498,1782760266000,-151.0,0.00035397,14]
[426721503,1782760266000,-5800.0,0.00035447,2]
[426721499,1782760266000,-238768.76507872,0.000354,7]
[426721501,1782760266000,-1268.945,0.000354,7]
[426721500,1782760266000,-54159.52272576,0.000354,7]
[426721504,1782760266000,-1568.05197126,0.00035447,2]
[426721505,1782760266000,-48111.46415001,0.00035455,30]
[426721507,1782760266000,-152.5325826,0.00035457,15]
[426721506,1782760266000,-5800.0,0.00035455,2]
[426721509,1782760266000,-11052.54623202,0.0003546,15]
[426721511,1782760266000,-150.0,0.00035486,60]
[426721508,1782760266000,-307.94,0.0003546,69]
[426721510,1782760266000,-150.0,0.00035486,60]
[426721514,1782760266000,-768.6366,0.000355,60]
[426721512,1782760266000,-150.0,0.00035486,60]
[426721513,1782760266000,-217.9140747,0.00035486,60]
[426721516,1782760266000,-3000.0,0.000355,30]
[426721515,1782760266000,-2000.0,0.000355,36]
[426721518,1782760266000,-200.0,0.000355,14]
[426721517,1782760266000,-800.0,0.000355,7]
[426721519,1782760266000,-924.42,0.0003555,7]
[426721524,1782760266000,-13657.81168864,0.00035584,3]
[426721551,1782760266000,-166.414994,0.00035616,30]
[426721561,1782760266000,-311.954531,0.00035616,30]
[426721552,1782760266000,-311.954531,0.00035616,30]
[426721581,1782760266000,-151.0,0.00035616,30]
[426721583,1782760266000,-151.0,0.00035616,30]
[426721579,1782760266000,-151.0,0.00035616,30]
[426721580,1782760266000,-151.0,0.00035616,30]
[426721586,1782760266000,-151.0,0.00035616,30]
[426721587,1782760266000,-295.513275,0.00035616,30]
[426721590,1782760266000,-151.0,0.00035616,30]
[426721588,1782760266000,-151.0,0.00035616,30]
[426721591,1782760266000,-151.0,0.00035616,30]
[426721589,1782760266000,-295.513275,0.00035616,30]
[426721594,1782760266000,-151.0,0.00035616,30]
[426721596,1782760266000,-151.0,0.00035616,30]
[426721593,1782760266000,-151.0,0.00035616,30]
[426721592,1782760266000,-151.0,0.00035616,30]
[426721595,1782760266000,-151.0,0.00035616,30]
[426721598,1782760266000,-151.0,0.00035616,30]
[426721597,1782760266000,-178.198597,0.00035616,30]
[426721601,1782760266000,-151.0,0.00035616,30]
[426721599,1782760266000,-151.0,0.00035616,30]
[426721600,1782760266000,-151.0,0.00035616,30]
[426721602,1782760266000,-151.0,0.00035616,30]
[426721605,1782760266000,-151.0,0.00035616,30]
[426721603,1782760266000,-151.0,0.00035616,30]
[426721606,1782760266000,-151.0,0.00035616,30]
[426721604,1782760266000,-151.0,0.00035616,30]
[426721577,1782760266000,-151.0,0.00035616,30]
[426721582,1782760266000,-225.244481,0.00035616,30]
[426721607,1782760266000,-151.0,0.00035616,30]
[426721578,1782760266000,-295.513275,0.00035616,30]
[426721573,1782760266000,-295.513275,0.00035616,30]
[426721550,1782760266000,-166.414994,0.00035616,30]
[426721554,1782760266000,-311.954531,0.00035616,30]
[426721553,1782760266000,-311.954531,0.00035616,30]
[426721557,1782760266000,-311.954531,0.00035616,30]
[426721555,1782760266000,-311.954531,0.00035616,30]
[426721558,1782760266000,-311.954531,0.00035616,30]
[426721560,1782760266000,-311.954531,0.00035616,30]
[426721559,1782760266000,-311.954531,0.00035616,30]
[426721562,1782760266000,-311.954531,0.00035616,30]
[426721564,1782760266000,-151.0,0.00035616,30]
[426721568,1782760266000,-295.513275,0.00035616,30]
[426721556,1782760266000,-311.954531,0.00035616,30]
[426721571,1782760266000,-295.513275,0.00035616,30]
[426721563,1782760266000,-311.954531,0.00035616,30]
[426721576,1782760266000,-151.0,0.00035616,30]
[426721584,1782760266000,-151.0,0.00035616,30]
[426721585,1782760266000,-295.513275,0.00035616,30]
[426721565,1782760266000,-151.0,0.00035616,30]
[426721574,1782760266000,-295.513275,0.00035616,30]
[426721575,1782760266000,-151.0,0.00035616,30]
[426721569,1782760266000,-295.513275,0.00035616,30]
[426721570,1782760266000,-295.513275,0.00035616,30]
[426721567,1782760266000,-295.513275,0.00035616,30]
[426721566,1782760266000,-151.0,0.00035616,30]
[426721572,1782760266000,-295.513275,0.00035616,30]
[426721647,1782760267000,-311.919381,0.00035616,30]
[426721644,1782760267000,-365.414,0.00035616,30]
[426721646,1782760267000,-365.414,0.00035616,30]
[426721645,1782760267000,-365.414,0.00035616,30]
[426721640,1782760267000,-151.0,0.00035616,30]
[426721641,1782760267000,-365.414,0.00035616,30]
[426721633,1782760267000,-365.414,0.00035616,30]
[426721638,1782760267000,-151.0,0.00035616,30]
[426721643,1782760267000,-365.414,0.00035616,30]
[426721656,1782760267000,-192.05,0.00035616,30]
[426721642,1782760267000,-365.414,0.00035616,30]
[426721655,1782760267000,-311.919381,0.00035616,30]
[426721668,1782760267000,-192.05,0.00035616,30]
[426721652,1782760267000,-311.919381,0.00035616,30]
[426721648,1782760267000,-311.919381,0.00035616,30]
[426721650,1782760267000,-192.05,0.00035616,30]
[426721651,1782760267000,-192.05,0.00035616,30]
[426721654,1782760267000,-311.919381,0.00035616,30]
[426721649,1782760267000,-311.919381,0.00035616,30]
[426721657,1782760267000,-311.919381,0.00035616,30]
[426721662,1782760267000,-192.05,0.00035616,30]
[426721659,1782760267000,-311.919381,0.00035616,30]
[426721661,1782760267000,-311.919381,0.00035616,30]
[426721660,1782760267000,-192.05,0.00035616,30]
[426721639,1782760267000,-151.0,0.00035616,30]
[426721653,1782760267000,-192.05,0.00035616,30]
[426721637,1782760267000,-365.414,0.00035616,30]
[426721625,1782760267000,-151.0,0.00035616,30]
[426721635,1782760267000,-189.567894,0.00035616,30]
[426721658,1782760267000,-192.05,0.00035616,30]
[426721608,1782760267000,-151.0,0.00035616,30]
[426721613,1782760267000,-151.0,0.00035616,30]
[426721617,1782760267000,-151.0,0.00035616,30]
[426721619,1782760267000,-151.0,0.00035616,30]
[426721611,1782760267000,-151.0,0.00035616,30]
[426721612,1782760267000,-151.0,0.00035616,30]
[426721610,1782760267000,-151.0,0.00035616,30]
[426721609,1782760267000,-151.0,0.00035616,30]
[426721616,1782760267000,-151.0,0.00035616,30]
[426721618,1782760267000,-151.0,0.00035616,30]
[426721615,1782760267000,-151.0,0.00035616,30]
[426721622,1782760267000,-151.0,0.00035616,30]
[426721628,1782760267000,-151.0,0.00035616,30]
[426721624,1782760267000,-151.0,0.00035616,30]
[426721626,1782760267000,-365.414,0.00035616,30]
[426721621,1782760267000,-151.0,0.00035616,30]
[426721631,1782760267000,-151.0,0.00035616,30]
[426721627,1782760267000,-365.414,0.00035616,30]
[426721630,1782760267000,-151.0,0.00035616,30]
[426721620,1782760267000,-151.0,0.00035616,30]
[426721629,1782760267000,-151.0,0.00035616,30]
[426721623,1782760267000,-365.414,0.00035616,30]
[426721632,1782760267000,-151.0,0.00035616,30]
[426721636,1782760267000,-365.414,0.00035616,30]
[426721634,1782760267000,-151.0,0.00035616,30]
[426721667,1782760267000,-311.919381,0.00035616,30]
[426721614,1782760267000,-151.0,0.00035616,30]
[426721664,1782760267000,-192.05,0.00035616,30]
[426721694,1782760267000,-229.43723,0.00035616,30]
[426721692,1782760267000,-229.43723,0.00035616,30]
[426721699,1782760267000,-229.43723,0.00035616,30]
[426721700,1782760267000,-229.43723,0.00035616,30]
[426721701,1782760267000,-229.43723,0.00035616,30]
[426721703,1782760267000,-229.43723,0.00035616,30]
[426721702,1782760267000,-229.43723,0.00035616,30]
[426721713,1782760267000,-151.0,0.00035616,30]
[426721704,1782760267000,-229.43723,0.00035616,30]
[426721709,1782760267000,-229.43723,0.00035616,30]
[426721707,1782760267000,-229.43723,0.00035616,30]
[426721705,1782760267000,-229.43723,0.00035616,30]
[426721693,1782760267000,-229.43723,0.00035616,30]
[426721708,1782760267000,-229.43723,0.00035616,30]
[426721710,1782760267000,-229.43723,0.00035616,30]
[426721712,1782760267000,-151.0,0.00035616,30]
[426721711,1782760267000,-229.437231,0.00035616,30]
[426721716,1782760267000,-151.0,0.00035616,30]
[426721714,1782760267000,-151.0,0.00035616,30]
[426721717,1782760267000,-151.0,0.00035616,30]
[426721719,1782760267000,-151.0,0.00035616,30]
[426721722,1782760267000,-202.743987,0.00035616,30]
[426721669,1782760267000,-192.05,0.00035616,30]
[426721720,1782760267000,-151.0,0.00035616,30]
[426721718,1782760267000,-151.0,0.00035616,30]
[426721721,1782760267000,-202.743987,0.00035616,30]
[426721706,1782760267000,-229.43723,0.00035616,30]
[426721698,1782760267000,-229.43723,0.00035616,30]
[426721715,1782760267000,-151.0,0.00035616,30]
[426721696,1782760267000,-229.43723,0.00035616,30]
[426721695,1782760267000,-229.43723,0.00035616,30]
[426721666,1782760267000,-311.919381,0.00035616,30]
[426721665,1782760267000,-311.919381,0.00035616,30]
[426721671,1782760267000,-151.0,0.00035616,30]
[426721672,1782760267000,-151.0,0.00035616,30]
[426721674,1782760267000,-151.0,0.00035616,30]
[426721670,1782760267000,-192.05,0.00035616,30]
[426721673,1782760267000,-151.0,0.00035616,30]
[426721678,1782760267000,-151.0,0.00035616,30]
[426721675,1782760267000,-151.0,0.00035616,30]
[426721679,1782760267000,-151.0,0.00035616,30]
[426721676,1782760267000,-151.0,0.00035616,30]
[426721677,1782760267000,-151.0,0.00035616,30]
[426721663,1782760267000,-192.05,0.00035616,30]
[426721680,1782760267000,-151.0,0.00035616,30]
[426721681,1782760267000,-151.0,0.00035616,30]
[426721691,1782760267000,-217.478187,0.00035616,30]
[426721687,1782760267000,-151.0,0.00035616,30]
[426721686,1782760267000,-151.0,0.00035616,30]
[426721688,1782760267000,-151.0,0.00035616,30]
[426721697,1782760267000,-229.43723,0.00035616,30]
[426721684,1782760267000,-151.0,0.00035616,30]
[426721685,1782760267000,-151.0,0.00035616,30]
[426721683,1782760267000,-151.0,0.00035616,30]
[426721682,1782760267000,-151.0,0.00035616,30]
[426721689,1782760267000,-290.399178,0.00035616,30]
[426721690,1782760267000,-151.0,0.00035616,30]
[426721751,1782760268000,-213.943681,0.00035616,30]
[426721756,1782760268000,-151.0,0.00035616,30]
[426721750,1782760268000,-151.0,0.00035616,30]
[426721752,1782760268000,-151.0,0.00035616,30]
[426721754,1782760268000,-151.0,0.00035616,30]
[426721757,1782760268000,-213.943681,0.00035616,30]
[426721759,1782760268000,-213.943681,0.00035616,30]
[426721755,1782760268000,-213.943681,0.00035616,30]
[426721758,1782760268000,-151.0,0.00035616,30]
[426721753,1782760268000,-213.943681,0.00035616,30]
[426721765,1782760268000,-213.943681,0.00035616,30]
[426721773,1782760268000,-151.0,0.00035616,30]
[426721762,1782760268000,-151.0,0.00035616,30]
[426721772,1782760268000,-213.943681,0.00035616,30]
[426721774,1782760268000,-213.943681,0.00035616,30]
[426721763,1782760268000,-213.943681,0.00035616,30]
[426721770,1782760268000,-213.943681,0.00035616,30]
[426721764,1782760268000,-151.0,0.00035616,30]
[426721761,1782760268000,-213.943681,0.00035616,30]
[426721766,1782760268000,-151.0,0.00035616,30]
[426721746,1782760268000,-202.743987,0.00035616,30]
[426721760,1782760268000,-151.0,0.00035616,30]
[426721747,1782760268000,-202.743987,0.00035616,30]
[426721736,1782760268000,-151.0,0.00035616,30]
[426721744,1782760268000,-202.743987,0.00035616,30]
[426721725,1782760268000,-202.743987,0.00035616,30]
[426721723,1782760268000,-202.743987,0.00035616,30]
[426721724,1782760268000,-202.743987,0.00035616,30]
[426721727,1782760268000,-202.743987,0.00035616,30]
[426721726,1782760268000,-151.0,0.00035616,30]
[426721728,1782760268000,-151.0,0.00035616,30]
[426721729,1782760268000,-202.743987,0.00035616,30]
[426721731,1782760268000,-202.743987,0.00035616,30]
[426721730,1782760268000,-151.0,0.00035616,30]
[426721733,1782760268000,-202.743987,0.00035616,30]
[426721741,1782760268000,-202.743987,0.00035616,30]
[426721732,1782760268000,-151.0,0.00035616,30]
[426721734,1782760268000,-151.0,0.00035616,30]
[426721739,1782760268000,-202.743987,0.00035616,30]
[426721738,1782760268000,-151.0,0.00035616,30]
[426721743,1782760268000,-202.743987,0.00035616,30]
[426721748,1782760268000,-202.743987,0.00035616,30]
[426721749,1782760268000,-202.743991,0.00035616,30]
[426721745,1782760268000,-202.743987,0.00035616,30]
[426721740,1782760268000,-151.0,0.00035616,30]
[426721742,1782760268000,-167.79971,0.00035616,30]
[426721737,1782760268000,-202.743987,0.00035616,30]
[426721735,1782760268000,-202.743987,0.00035616,30]
[426721768,1782760268000,-151.0,0.00035616,30]
[426721769,1782760268000,-151.0,0.00035616,30]
[426721771,1782760268000,-151.0,0.00035616,30]
[426721794,1782760268000,-151.0,0.00035616,30]
[426721799,1782760268000,-151.0,0.00035616,30]
[426721803,1782760268000,-155.180973,0.00035616,30]
[426721805,1782760268000,-155.180973,0.00035616,30]
[426721814,1782760268000,-155.180973,0.00035616,30]
[426721806,1782760268000,-155.180973,0.00035616,30]
[426721809,1782760268000,-155.180973,0.00035616,30]
[426721812,1782760268000,-155.180973,0.00035616,30]
[426721807,1782760268000,-155.180973,0.00035616,30]
[426721810,1782760268000,-170.994797,0.00035616,30]
[426721798,1782760268000,-151.0,0.00035616,30]
[426721808,1782760268000,-155.180973,0.00035616,30]
[426721813,1782760268000,-155.180973,0.00035616,30]
[426721816,1782760268000,-155.180973,0.00035616,30]
[426721815,1782760268000,-155.180973,0.00035616,30]
[426721818,1782760268000,-155.180973,0.00035616,30]
[426721819,1782760268000,-155.180973,0.00035616,30]
[426721822,1782760268000,-155.180974,0.00035616,30]
[426721817,1782760268000,-155.180973,0.00035616,30]
[426721821,1782760268000,-155.180973,0.00035616,30]
[426721820,1782760268000,-155.180973,0.00035616,30]
[426721767,1782760268000,-213.943681,0.00035616,30]
[426721811,1782760268000,-155.180973,0.00035616,30]
[426721795,1782760268000,-151.0,0.00035616,30]
[426721804,1782760268000,-155.180973,0.00035616,30]
[426721797,1782760268000,-151.0,0.00035616,30]
[426721776,1782760268000,-213.943681,0.00035616,30]
[426721802,1782760268000,-155.180973,0.00035616,30]
[426721787,1782760268000,-289.614488,0.00035616,30]
[426721775,1782760268000,-151.0,0.00035616,30]
[426721786,1782760268000,-213.943681,0.00035616,30]
[426721777,1782760268000,-151.0,0.00035616,30]
[426721779,1782760268000,-151.0,0.00035616,30]
[426721780,1782760268000,-213.943681,0.00035616,30]
[426721778,1782760268000,-213.943681,0.00035616,30]
[426721781,1782760268000,-213.943681,0.00035616,30]
[426721782,1782760268000,-151.0,0.00035616,30]
[426721783,1782760268000,-213.943681,0.00035616,30]
[426721785,1782760268000,-151.0,0.00035616,30]
[426721784,1782760268000,-213.943681,0.00035616,30]
[426721788,1782760268000,-213.943685,0.00035616,30]
[426721790,1782760268000,-151.0,0.00035616,30]
[426721791,1782760268000,-151.0,0.00035616,30]
[426721792,1782760268000,-151.0,0.00035616,30]
[426721789,1782760268000,-151.0,0.00035616,30]
[426721793,1782760268000,-151.0,0.00035616,30]
[426721800,1782760268000,-151.0,0.00035616,30]
[426721796,1782760268000,-151.0,0.00035616,30]
[426721801,1782760268000,-238.122514,0.00035616,30]
[426721869,1782760269000,-151.0,0.00035616,30]
[426721868,1782760269000,-151.0,0.00035616,30]
[426721867,1782760269000,-151.0,0.00035616,30]
[426721861,1782760269000,-151.0,0.00035616,30]
[426721856,1782760269000,-151.0,0.00035616,15]
[426721855,1782760269000,-151.0,0.00035616,30]
[426721859,1782760269000,-151.0,0.00035616,30]
[426721858,1782760269000,-171.662148,0.00035616,15]
[426721851,1782760269000,-151.0,0.00035616,15]
[426721857,1782760269000,-151.0,0.00035616,30]
[426721871,1782760269000,-151.0,0.00035616,30]
[426721860,1782760269000,-151.0,0.00035616,30]
[426721864,1782760269000,-275.286234,0.00035616,30]
[426721875,1782760269000,-151.0,0.00035616,30]
[426721872,1782760269000,-151.0,0.00035616,30]
[426721870,1782760269000,-151.0,0.00035616,30]
[426721863,1782760269000,-151.0,0.00035616,30]
[426721862,1782760269000,-156.647982,0.00035616,30]
[426721865,1782760269000,-151.0,0.00035616,30]
[426721866,1782760269000,-151.0,0.00035616,30]
[426721885,1782760269000,-151.0,0.00035616,30]
[426721876,1782760269000,-151.0,0.00035616,30]
[426721884,1782760269000,-151.0,0.00035616,30]
[426721874,1782760269000,-151.0,0.00035616,30]
[426721878,1782760269000,-151.0,0.00035616,30]
[426721852,1782760269000,-374.877921,0.00035616,30]
[426721873,1782760269000,-151.0,0.00035616,30]